{"text_format":"1","workbook":"xlsx","n_sheets":3,"sheets":["Haushalte","Haushalte (neu_ausgetreten)","Helferberechnung"],"not_rendered":{"charts":0,"images":0,"macros":0,"external_links":0,"defined_names":5,"comments":0,"pivot_tables":0},"unopened":[],"bounds":{"document_bytes":16777216,"sheet_cells":100000,"rows_first":2000,"rows_last":500,"rows_between":2000,"halvings":0,"cell_chars":16384,"cell_head_chars":4096},"cells_cut":0,"cells_raw":0,"read":"whole","date_system":"1900"}

{"sheet":"Haushalte","index":0,"n_rows":73,"n_cols":36,"rows_kept":73,"cut":false,"hidden":false,"merged":[]}
["Haushalt ","Vorname","Adresse","Telefon","Mobil1","Mobil2","Bemerkung","Laufzettel","Helfer befreit","geholfen:","2001","2002","2003","2004","2005","2006","2007","2008","2009","2010","2011","2012","2013","2014","2015","2016","2017","2018","2019","2020","2021","2022","2023","2024","2025","2026"]
["Beckmann","Ralf + Moni","Mittbrake 1",41291,1759066885,null,null,"Rheder Straße / Mittbrake (Laufzettel 2)",null,{"$f":"COUNTIF(K2:AJ2,\"x\")","v":3},null,null,null,"x",null,null,null,null,null,null,null,null,null,null,"x",null,null,null,null,null,null,null,null,null,"x"]
["Benning","Sebastian","Burdarper Heide 10","017630331585?",null,null,"Eingetr. 2012","Burdarp Mitte / Burlo (Laufzettel 3)",null,1,null,null,null,null,null,null,null,null,null,null,null,null,null,"x"]
["Blicker","Jörg & Claudia","Rheder Straße 83",418709,null,null,null,"Rheder Straße / Mittbrake (Laufzettel 2)",null,3,null,null,null,null,null,null,null,null,null,null,null,"x",null,null,null,null,null,null,null,"x",null,null,"x"]
["Böckmann","Willi & Renate","Rheder Straße 50",41192,null,null,null,"Klosterdiek (Laufzettel 4)","v",1,null,null,null,null,null,null,null,null,null,null,null,null,null,null,null,null,null,null,null,null,null,null,null,null,null,"x"]
["Brockhoff","Hubert & Ulla","Steenekamp 22",1322,null,null,null,"Steenekamp (Laufzettel 10)","r",2,"x",null,null,null,null,null,null,null,"x"]
["Bröring","Cornelia & Markus","Klosterdiek 40, 42","2259, 416901",null,null,"Anni 3/2019verstor","Klosterdiek (Laufzettel 4)",null,4,null,null,"x",null,null,null,null,null,null,"x",null,null,null,null,null,"x",null,null,null,null,null,null,null,"x"]
["Budinger","Beata","Klosterdiek 28",417658,null,null,"eingetreten 2004, Frank 2/2023 verst.","RhederStraße, Grundschule (Laufzettel 5)",null,3,null,null,null,null,null,null,null,null,"x",null,null,null,null,null,"x",null,null,null,null,null,null,null,null,null,"x"]
["de Vreede","José & Rudie","Burdarper Heide 6",4190188,null,null,"Eingetr. 11/2016","Burdarp Mitte / Burlo (Laufzettel 3)",null,1,null,null,null,null,null,null,null,null,null,null,null,null,null,null,null,null,null,null,null,null,null,null,null,"x"]
["Diekmann","Heiner & Kläre","Bösweg 38",3611,null,null,"7/07 Oma gest.","Bösweg (Laufzettel 8)",null,3,null,null,null,null,null,"x",null,null,null,null,"x",null,null,null,null,null,null,null,"x"]
["Dillage","Rudolf","Klosterdiek 9",1517,null,null,"2023 Beitrag gesammelt"," Klosterdiek / Voßkamps Diek (Laufzettel 6)","r",0]
["Drescher ","Gabi & Georg","Bösweg 31",null,null,null,"eingetr.11/09","Bösweg (Laufzettel 8)",null,2,null,null,null,null,null,null,null,null,null,null,null,null,"x",null,null,null,null,null,null,null,null,null,"x"]
["Dubke","Stefan & Alexandra","Bösweg 23",41142,null,null,"eingetr. 2005 , ","Bösweg (Laufzettel 8)",null,3,null,null,null,null,null,"x",null,null,null,null,null,null,null,null,"x",null,null,null,null,null,null,null,null,null,null,"x"]
["Eskes","Anneliese","Voßkamps Diek 31",2941,null,null,null," Klosterdiek / Voßkamps Diek (Laufzettel 6)",null,3,null,null,"x",null,null,null,null,null,null,null,null,"x",null,null,null,"x"]
["Eskes","Martin & Ingrid","Voßkamps Diek 31a",414413,null,null,"eingetr. 2010"," Klosterdiek / Voßkamps Diek (Laufzettel 6)",null,2,null,null,null,null,null,null,null,null,null,null,null,null,"x",null,null,null,null,null,"x"]
["Eskes","Andreas & Alexandra","Steenekamp 4 a",415527,null,null,"2010 von Laufzettel10","Lange Dieksken / Bösweg (Laufzettel 9)",null,3,null,"x",null,null,null,null,null,null,null,"x",null,null,null,null,null,null,null,null,null,null,null,null,"x"]
["Bolten","Iris","Wirther Feldweg 20 ",414880,null,null,"Eingetr 06/2011 / Michael Vornholt umgezogen","Hinter Burdarp (Laufzettel 1)",null,1,null,null,null,null,null,null,null,null,null,null,null,null,null,null,null,null,null,null,null,null,null,null,null,"x"]
["Frieling","Günter","Rheder Straße 71",1215,null,null,null,"Bösweg (Laufzettel 8)",null,2,null,null,null,null,null,null,null,"x",null,null,null,null,null,null,null,null,"x"]
["Frieling","Helmut","Lange Dieksken 56 a",414703,null,null,null,"Lange Dieksken / Bösweg (Laufzettel 9)",null,3,null,null,null,null,"x",null,null,null,null,null,null,null,"x",null,null,null,null,null,null,null,null,null,null,null,"x"]
["Göring","Doris & Rainer","Klosterdiek 46",3480,null,null,"Josef_Stev. Gest. 4/2014","Klosterdiek (Laufzettel 4)","v",1,null,null,null,null,null,null,null,null,null,null,null,null,null,null,"x"]
["Groß-Bölting","Agnes","Lange Dieksken 48",1734,null,null,"umgezogen Heim 10/2023","Lange Dieksken (Laufzettel 7)","r",0]
["Hüning","Berthold & Karthin","Steenekamp 6",null,null,null,null,null,null,{"$f":"COUNTIF(K22:AJ22,\"x\")","v":3},null,null,"x",null,null,null,null,null,null,null,"x",null,null,null,null,null,null,null,"x"]
["Hüging","Norbert & Elisabeth","Lange Dieksken 60a",415895,null,null,null,"Lange Dieksken / Bösweg (Laufzettel 9)",null,1,null,null,null,null,null,null,null,null,null,null,null,null,null,null,null,null,null,null,"x"]
["Hüging","Gerhard & Stefan","Steenekamp 33",2569,null,null,"2010 von Laufzettel 1","Steenekamp (Laufzettel 10)",null,3,null,null,null,null,null,null,null,null,"x",null,null,null,null,null,null,null,"x",null,null,null,null,null,null,null,"x"]
["Hüls ","Maximillian & Josephine","Bösweg 19 c","0176/51543125","0176/5154312",null,"Neu eingetreten 2023","Bösweg (Laufzettel 8)","v",0]
["Jeusfeld","Walter & Irmgard","An der Delle 10","02872 6793",null,null,"Antonia verst. 6/2014","Klosterdiek (Laufzettel 4)",null,4,null,null,null,null,"x",null,null,null,null,null,"x",null,null,null,null,null,null,"x",null,null,null,null,null,null,"x"]
["Jeusfeld","Martin & Jessika","An der Delle 10",null,null,null,"Eingetreten 2021","Klosterdiek (Laufzettel 4)",null,1,null,null,null,null,null,null,null,null,null,null,null,null,null,null,null,null,null,null,null,null,null,null,null,null,null,"x"]
["Jeusfeld","Helga & Thomas","Burdarper Heide 7",1700,null,null,null,"Klosterdiek (Laufzettel 4)",null,4,null,null,null,null,null,null,"x",null,null,null,null,null,"x",null,null,null,null,null,null,"x",null,"x"]
["Johlitz","Daniel & Monika","Wirther Feldweg 18","017663027714",null,null,"Eingetr 06/2019","Hinter Burdarp (Laufzettel 1)",null,1,null,null,null,null,null,null,null,null,null,null,null,null,null,null,null,null,null,null,null,null,null,null,"x"]
["Kahmann","Mike & Nicole","Klosterdiek 6","*01739068046",null,null,"Eingetr. 11/2016","RhederStraße, Grundschule (Laufzettel 5)",null,2,null,null,null,null,null,null,null,null,null,null,null,null,null,null,null,null,null,null,null,"x",null,"x"]
["Kamperschroer","Marita","Lange Dieksken 43",1662,null,null,"Lorenz gest. 3/22","Lange Dieksken (Laufzettel 7)",null,3,null,null,null,"x",null,null,null,null,null,"x",null,null,null,null,"x"]
["Klein Wiele","Andre & Tina","Klosterdiek 14",3513,null,null,"eingetreten 2004","RhederStraße, Grundschule (Laufzettel 5)",null,3,null,null,null,null,null,null,"x",null,null,null,null,null,"x",null,null,null,null,null,null,null,null,null,"x"]
["Klein-Menting, Schlüss","Elisabeth, Andreas & Ulrike","Rheder Straße 85","2246 + 3270",null,null,"Hubert 5/11 verstorben","Rheder Straße / Mittbrake (Laufzettel 2)",null,3,null,"x",null,null,null,null,null,null,null,null,null,null,"x",null,null,null,null,null,null,null,null,null,null,"x"]
["Klett","Angelika","Burdarper Heide 10a","5883894",null,null,"Eingetr. 11/2013, austritt zu 2025","Burdarp Mitte / Burlo (Laufzettel 3)","r",1,null,null,null,null,null,null,null,null,null,null,null,null,null,null,"x"]
["Klinkenberg","Jochen & Maria","Burdarper Weg 5",null,null,null,"eingetr. Juni 2016","Burdarp Mitte / Burlo (Laufzettel 3)",null,{"$f":"COUNTIF(K35:AJ35,\"x\")","v":2},null,null,null,null,null,null,null,null,null,null,null,null,null,null,null,null,null,null,null,"x",null,"x"]
["Klüppel","Magdalena & Ludger","Steenekamp 29",1534,null,null,null,"Steenekamp (Laufzettel 10)",null,2,null,null,null,null,null,null,null,null,null,"x",null,null,null,null,null,null,null,"x"]
["Knipping","Ulrich & Iris","Burdarper Heide 4",414844,null,null,null,"Burdarp Mitte / Burlo (Laufzettel 3)",null,3,null,null,null,"x",null,null,null,null,null,null,null,null,"x",null,null,null,null,null,null,null,null,null,"x"]
["Kruisselbrink","Fred & Lianne","Burdarper Heide 8","1321 o. 41229","01712658035",null,null,"Burdarp Mitte / Burlo (Laufzettel 3)",null,1,null,null,null,null,null,null,null,null,null,null,null,null,null,null,null,null,null,null,null,null,null,null,null,null,null,"x"]
["Langenbrink","Adelgunde ","Klosterdiek 50",1341,null,null,"2011->Josef+ Berthold 2016 ausgetr. Josej 12/2020 verst.","Klosterdiek (Laufzettel 4)","r",1,null,null,null,"x"]
["Langenbrink","Manuela & Uwe","Borkener Straße 150","2349 u. 418844*",null,null,"Hubert 2024 weggezogen","Lange Dieksken / Bösweg (Laufzettel 9)",null,3,null,null,null,"x",null,null,null,null,null,null,"x",null,null,null,null,"x"]
["Lansing","Karl","Klosterdiek 20 a",414049,null,null,null,"RhederStraße, Grundschule (Laufzettel 5)",null,3,null,null,null,null,null,null,null,"x",null,null,null,null,null,"x",null,null,null,null,null,null,null,null,null,"x"]
["Laumann","Marc","Burdarper Weg",null,null,null,"eingetr. 6/2022","Burdarp Mitte / Burlo (Laufzettel 3)",null,1,null,null,null,null,null,null,null,null,null,null,null,null,null,null,null,null,null,null,null,null,null,null,null,null,null,"x"]
["Laws","Marion & Rittmer","Am Rosengarten 30 a",42900,null,null,null,"Lange Dieksken (Laufzettel 7)",null,2,null,null,null,null,null,null,null,"x",null,null,null,null,null,null,null,null,null,null,"x"]
["Lienemann","Laurenz","Burloer Diek 71",null,"0178/1980379",null,"Eingetreten 2025",null,null,0]
["Linfert","Reinhard & Michaele","Mittbrake 4a",41095,1739359478,null,null," Klosterdiek / Voßkamps Diek (Laufzettel 6)",null,3,null,null,null,null,null,null,"x",null,null,null,null,null,null,null,null,null,null,"x",null,null,null,null,null,null,"x"]
["Linfert, ","Clemens & Maike","Mittbrake 4","1874 u. 2144",1743221842,1738528496,"Clemens, sen. Verst.10/06"," Klosterdiek / Voßkamps Diek (Laufzettel 6)",null,3,null,null,null,null,null,"x",null,null,null,null,null,null,null,null,null,null,"x",null,null,null,null,null,null,"x"]
["Linnhoff","Oliver","Bösweg 33",3358,null,null,"Horst gest. 4_2013","Bösweg (Laufzettel 8)",null,5,null,"x",null,null,null,null,"x",null,null,null,null,"x",null,null,null,null,null,null,null,"x",null,"x"]
["Middendorf","Ulrich","Bösweg 19 b",414144,null,null,"Manuela austreten zu 2010","Bösweg (Laufzettel 8)",null,3,null,null,null,null,null,null,null,null,"x",null,null,null,null,null,null,"x",null,null,null,null,null,null,null,null,null,"x"]
["Olbing","Johannes,Maria & Martin","Lange Dieksken 45 a",3538,null,null,null,"Lange Dieksken (Laufzettel 7)",null,4,null,null,null,null,null,"x",null,null,null,null,null,"x",null,null,null,"x",null,null,null,null,null,null,"x"]
["Olbing","Elisabeth & Andrea","Steenekamp 39",416653,null,null,"Josef 6/22 verst.","Bösweg (Laufzettel 8)",null,2,null,null,null,null,null,null,null,null,null,"x",null,null,null,null,null,null,null,"x"]
["Paß","Marc & Andrea","Klosterdiek 4",588434,null,null,"eingetr. Zu 2007","RhederStraße, Grundschule (Laufzettel 5)",null,2,null,null,null,null,null,"x",null,null,null,null,null,null,null,null,null,null,null,"x"]
["Plahuta + Zkrykowski","Melanie & Kevin","Stenekamp 12 b","4191379- 1637191202",null,null,"Eingetr. 06/2014","Steenekamp (Laufzettel 10)",null,1,null,null,null,null,null,null,null,null,null,null,null,null,null,null,null,null,null,null,null,null,null,null,"x"]
["Printing","Jürgen & Heike","Printingsweg 4","588962 Jürgen 2857 Rudolf",null,null,"Rudolf gest. 5/2020","Hinter Burdarp (Laufzettel 1)",null,3,null,null,null,null,"x",null,null,null,null,null,null,null,"x",null,null,null,null,null,null,null,null,null,null,null,null,"x"]
["Rottbeck","Doris & Heiner","Wansingsweg 9","02872/ 2780 Deelmann","02872/9495234",null,"2010 Änne Kemper umgez. Josef Deelmann 10/2023 verstorben","Hinter Burdarp (Laufzettel 1)",null,4,null,null,null,null,null,null,null,"x",null,null,"x",null,null,null,"x",null,null,null,null,null,null,null,null,null,"x"]
["Schneiders","Anne","Lange Dieksken 62",3910,null,null,null,"Lange Dieksken / Bösweg (Laufzettel 9)",null,3,null,"x",null,null,null,null,null,"x",null,null,null,null,null,null,null,null,null,"x"]
["Schüling","Heinrich & Elisabeth","Bösweg 21",41130,null,null,null,"Bösweg (Laufzettel 8)",null,2,null,null,null,"x",null,null,null,null,null,null,null,null,null,null,null,null,null,null,null,null,null,null,null,null,"x"]
["Schulten","Norbert & Renate","Rheder Straße 79","1717863790??",null,null,"Eingetr 11/2019","Rheder Straße / Mittbrake (Laufzettel 2)",null,1,null,null,null,null,null,null,null,null,null,null,null,null,null,null,null,null,null,null,null,null,null,"x"]
["Seelwische","Florian","Rheder Straße 79","3037055","01726613340",null,null,"Rheder Straße / Mittbrake (Laufzettel 2)",null,1,null,null,null,null,null,null,null,null,null,null,null,null,null,null,null,null,null,null,"x"]
["Steverding","Günter & Dirk","Burdarper Weg 5","2377 u. 1333",null,null,null,"Burdarp Mitte / Burlo (Laufzettel 3)",null,3,null,null,"x",null,null,null,null,null,null,null,null,"x",null,null,null,null,null,null,"x"]
["Südfels","Karl","Rheder Straße 12",2785,null,null,"Elfriede gest. 01.13","RhederStraße, Grundschule (Laufzettel 5)",null,2,null,null,null,null,null,"x",null,null,null,null,null,null,null,null,null,null,"x"]
["Thesing","Claudia & Heinrich","Rheder Straße 62","2163 u. 3192",null,null,"Alfons 06/2011 verst. Maria 2/2024 verst.","Klosterdiek (Laufzettel 4)",null,3,null,null,null,null,null,null,null,"x",null,null,null,null,null,"x",null,null,null,null,null,null,null,null,"x"]
["Uhlenbrock","Benedikt & Franzi","Burdarper Weg 2","0170/8017938",null,null,"eingetr. 6/2019","Burdarp Mitte / Burlo (Laufzettel 3)",null,1,null,null,null,null,null,null,null,null,null,null,null,null,null,null,null,null,null,null,null,null,null,null,null,null,"x"]
["Verhoolen","Doris","Bösweg 27",3754,null,null,"Dirk gesorben 8(2020)","Bösweg (Laufzettel 8)",null,4,"x",null,null,null,null,null,null,"x",null,null,null,null,null,"x",null,null,null,null,null,null,null,null,null,"x"]
["Volks","Heinrich","Steenekamp 8",2389,null,null,null,"Steenekamp (Laufzettel 10)","r",0]
["Vornholt","Heidi, Christoph & Julia","Burdarper Weg 21","3432 u. 90920","01737277241 Christoh","017660028262 Julia","Josef 06/08 verstorben","Hinter Burdarp (Laufzettel 1)",null,3,"x",null,null,null,null,null,null,null,null,null,"x",null,null,null,null,null,"x"]
["Vornholt","Jasmin & Thomas","Burdarper Weg 13",17623115239,null,null,null,null,"v",0]
["Vornholt","Norbert & Christiane","Burdarper Weg 13","414841 o.  ",null,1772345328,"Erna Gest. 3/2017 umgez. \nJanuar 2018","Hinter Burdarp (Laufzettel 1)",null,{"$f":"COUNTIF(K67:AJ67,\"x\")","v":3},"x",null,null,null,null,null,null,null,null,"x",null,null,null,null,null,null,null,null,"x"]
["Vornholt","Agnes, Dieter","Rheder Straße 73","2678 u. 414121",null,null,"Johannes 08 verstorben","Rheder Straße / Mittbrake (Laufzettel 2)",null,2,null,null,null,null,null,null,null,null,"x",null,null,null,null,null,null,null,"x"]
["Weger Föcking","Markus & Steffi","Steenekamp 4 a",416305,null,null,"eingetr. 11/ 2010","Lange Dieksken / Bösweg (Laufzettel 9)",null,2,null,null,null,null,null,null,null,null,null,null,null,"x",null,null,null,null,null,null,null,null,null,null,null,"x"]
["Welter","Heinz","Klosterdiek 11",1525,null,null,"eingetr.11/ 09"," Klosterdiek / Voßkamps Diek (Laufzettel 6)","r",0]
["Wolters","Daniel & Carmen","Burdarper Weg 16","4151377 o. 1361",null,null,"Alfons gest. 2/22","Hinter Burdarp (Laufzettel 1)",null,3,null,null,null,"x",null,null,null,null,null,null,null,"x",null,null,null,null,null,"x"]
["Wolters","Tobias & Sandra","Burdarper Weg 16",null,null,null,"Eingetr zu 11/2017","Hinter Burdarp (Laufzettel 1)",null,1,null,null,null,null,null,null,null,null,null,null,null,null,null,null,null,null,null,null,null,null,null,null,null,null,null,"x"]
["Zimmer","Dietmar & Marianne","Rheder Straße 77",414563,null,null,"Fr. Müller gest. 2012","Rheder Straße / Mittbrake (Laufzettel 2)",null,2,null,null,null,null,null,null,null,null,null,"x",null,null,null,null,null,null,null,"x"]

{"sheet":"Haushalte (neu_ausgetreten)","index":1,"n_rows":17,"n_cols":31,"rows_kept":17,"cut":false,"hidden":false,"merged":[]}
["Haushalt ","Vorname","Adresse","Telefon","Mobil1","Mobil2","Bemerkung","Bemerkung 2","Laufzettel",2005,2006,2007,2008,2009,2010,2011,2012,2013,2014,2015,2016,2017,2018,2019,2020,2021,2022,2023,2024,2025,2026]
["Albers","Herbert + Renate  + Maria","Steenekamp 20","1536 u. 41344",null,null,"Alois gest.4/2006, Maria gest 22, möchten zu 2025 raus",null,"Steenekamp (Laufzettel 10)"]
["Firnhaber","David","Klosterdiek 20","01728777172",null,null,"eingetr. 2/2024, weggezogen 2024",null,"RhederStraße, Grundschule (Laufzettel 5)"]
["Föcker","Bernd","Klosterdiek 5",3436,null,null,"geht raus zu 2023",null," Klosterdiek / Voßkamps Diek (Laufzettel 6)"]
["Gräfling","Manfred","Klosterdiek 13",2173,null,null,"möchte raus zu 2024",null," Klosterdiek / Voßkamps Diek (Laufzettel 6)"]
["Hüning","Anna + Johann + Berthold","Steenekamp 6",2691,null,null,null,null,"Steenekamp (Laufzettel 10)"]
["Lange","Brigitte","Klosterdiek 12",2689,null,null,"Otto verst. 2/2014",null,"RhederStraße, Grundschule (Laufzettel 5)"]
["Lombarts ","Hans + Violetta","Voßkampsdiek 10",416894,null,null,"2009 kaum geholfen, \n2015 gar nicht, Gör eingespr. Ausgetr zu 2023",null,"Klosterdiek (Laufzettel 4)"]
["Paß","Carola","Klosterdiek 4",2399,null,null,"Heiner gest. 1Q/2022",null,"RhederStraße, Grundschule (Laufzettel 5)"]
["Rademacher","Helga","Bösweg 7",41275,null,null,"eingetr. 10/2015, ausgetr. 12/2023",null,"Lange Dieksken / Bösweg (Laufzettel 9)"]
["Rotte","Dirk + Marlies","Rheder Straße ",15164116819,null,null,"Eingetr 11/2019\nAusgetr. Zu 2023",null,"Rheder Straße / Mittbrake (Laufzettel 2)"]
["Schneiders","Alois","Rheder Straße 87",1452,null,null,"raus zu 2023",null,"Rheder Straße / Mittbrake (Laufzettel 2)"]
["Telaar","Gudula","Klosterdiek 36",1560,null,null,"Huber gest. 10/2015",null," Klosterdiek / Voßkamps Diek (Laufzettel 6)"]
["Verdirk","Hans","Rheder Straße 10",2624,null,null,"gestorben 3?/22",null,"RhederStraße, Grundschule (Laufzettel 5)"]
["Vöcking (?)","Annegret","Steenekamp 8","416305 \n015739110172",null,null,"eingetr 6/2015, Rentner  1.6.23 umgezogen Borken",null,"Steenekamp (Laufzettel 10)"]
["Vornholt","Mathias, Martina","Wirther Feldweg 20 b",418736,null,null,"Eingetr 11/2010, Ausgetr. Zu 2025",null,"Hinter Burdarp (Laufzettel 1)"]
["Wolters","Tobias","Burdarper Weg 16",null,null,null,"Eingetr zu 11/2017","???","Hinter Burdarp (Laufzettel 1)"]

{"sheet":"Helferberechnung","index":2,"n_rows":0,"n_cols":0,"rows_kept":0,"cut":false,"hidden":false,"merged":[]}